Cogmind - Beta 14 @@@ ROGUE MODE // 2025.02.17 @ 12:53:11 Player: Zeta Lockhart Result: Core destroyed Performance ------------- Evolutions (5) 2500 Regions Visited (12) 2400 Robots Destroyed (195) 975 Value Destroyed (7756) 7756 Prototype IDs (5) 100 Alien Tech Used (0) 0 Bonus (2099) 2099 TOTAL SCORE: 15830 Bonus ------- High Alert Combat Kills 1364 Follower Combat Kills 1085 Friendly Fire -350 Cogmind --------- Core Integrity 0/1000 Matter 199/300 Energy 380/645 System Corruption 6% Temperature Critical (558) Movement Immobile (Siege) Location -5/Hub_04(d) Parts ------- > --- POWER (3) -------- Antimatter Reactor Light Antimatter Reactor Quantum Reactor > --- PROPULSION (4) --- Medium Treads Medium Treads Centrium Heavy Treads > --- UTILITY (5) ------ Advanced Heat Sink Advanced Heat Sink Advanced Heat Sink Large Storage Unit Centrium Medium Armor Plating > --- WEAPON (5) ------- Wave Gun Heavy Beamcaster Long-range Proton Cannon Advanced Assault Cannon Mass Driver > --- INVENTORY (15) --- Neutrino Core Particle Reactor Quantum Reactor Armored Treads Armored Treads Medium Treads Advanced Heat Sink Improved Energy Well (400) Centrium Medium Armor Plating Centrium Medium Armor Plating KE Penetrator Mass Driver Mass Driver Mass Driver Peak State ------------ > --- POWER ------------ Antimatter Reactor Light Antimatter Reactor Quantum Reactor > --- PROPULSION ------- Medium Treads Medium Treads Centrium Heavy Treads > --- UTILITY ---------- Advanced Heat Sink Advanced Heat Sink Advanced Cooling System Large Storage Unit Centrium Medium Armor Plating > --- WEAPON ----------- Wave Gun Heavy Beamcaster Long-range Proton Cannon Advanced Assault Cannon Mass Driver > --- INVENTORY -------- Neutrino Core Particle Reactor Quantum Reactor Armored Treads Armored Treads Medium Treads Advanced Heat Sink Advanced Heat Sink Improved Energy Well Centrium Medium Armor Plating Centrium Medium Armor Plating Heavy Machine Gun KE Penetrator Mass Driver Mass Driver [Rating: 112] Favorites ----------- Power Light Angular Momentum Engine Engine Light Angular Momentum Engine Power Core Neutrino Core Reactor Antimatter Reactor Propulsion Light Treads Treads Light Treads Utility Improved Heat Sink Device Improved Heat Sink Storage Large Storage Unit Protection Medium Reactive Plating Weapon Gatling Laser Energy Gun Gatling Laser Energy Cannon Ion Cannon Ballistic Gun Heavy Assault Rifle Ballistic Cannon Improved Light Cannon Launcher Rocket Launcher Build | -11 -10 -10 -10 -8 -8 -7 -6 -5 -5 -5 -5 -5 ------- Run | Yrd Mat Min Sub Mat Sto Fac Fac Fac Ext Cet Arc Hub Slots Evolved 10 | . . . . 4 . 2 2 2 . . . . Power 2 | . . . . . . 1 1 . . . . . Propulsion 2 | . . . . . . 1 1 . . . . . Utility 3 | . . . . 2 . . . 1 . . . . Weapon 3 | . . . . 2 . . . 1 . . . . Parts Attached 178 | 7 3 8 6 17 23 16 6 37 39 7 6 3 Power 31 | 1 . 2 . 4 1 5 3 7 6 2 . . Engine 16 | 1 . 2 . 4 1 2 2 3 1 . . . Core 12 | . . . . . . 3 1 4 4 . . . Reactor 3 | . . . . . . . . . 1 2 . . Propulsion 32 | 2 . . 1 3 6 1 2 3 10 1 3 . Treads 32 | 2 . . 1 3 6 1 2 3 10 1 3 . Leg . | . . . . . . . . . . . . . Wheel . | . . . . . . . . . . . . . Hover . | . . . . . . . . . . . . . Flight . | . . . . . . . . . . . . . Utility 55 | 2 3 1 4 5 8 2 . 14 11 2 2 1 Device 32 | 1 . 1 . 4 4 1 . 11 7 . 2 1 Storage 7 | 1 3 . 1 . . . . 1 . 1 . . Processor . | . . . . . . . . . . . . . Hackware . | . . . . . . . . . . . . . Protection 16 | . . . 3 1 4 1 . 2 4 1 . . Artifact . | . . . . . . . . . . . . . Weapon 60 | 2 . 5 1 5 8 8 1 13 12 2 1 2 Energy Gun 23 | 2 . 3 1 1 3 2 . 5 5 . . 1 Energy Cannon 7 | . . . . 2 . 1 . 2 1 1 . . Ballistic Gun 11 | . . . . . 4 2 . 1 4 . . . Ballistic Cannon 17 | . . 2 . . 1 3 1 5 2 1 1 1 Launcher 2 | . . . . 2 . . . . . . . . Special Weapon . | . . . . . . . . . . . . . Impact Weapon . | . . . . . . . . . . . . . Slashing Weapon . | . . . . . . . . . . . . . Piercing Weapon . | . . . . . . . . . . . . . Special Melee Weapon . | . . . . . . . . . . . . . Unidentified Prototypes 5 | . . . . 1 . . . 2 . 2 . . Corrupted Parts 1 | . . . . . . . . . . . 1 . System Corruption 2 | . . . . . . . . . . . 2 . Parts Lost 53 | . . 2 1 3 8 . 2 19 13 3 . 2 Power 12 | . . 1 . 1 1 . 2 4 3 . . . Propulsion 10 | . . . 1 . 1 . . 2 5 1 . . Utility 9 | . . . . 1 1 . . 6 . . . 1 Weapon 22 | . . 1 . 1 5 . . 7 5 2 . 1 Highest Loss Streak 9 | . . 2 1 3 5 . 1 6 9 2 . 1 To Critical Strikes 2 | . . . . . . . 1 . . 1 . . Average Slot Usage (%) 94 | . 100 97 98 95 97 98 90 87 91 93 94 92 Engine 8 | . 14 11 14 8 8 11 6 8 6 . . . Core 2 | . . . . . . 2 3 5 3 2 . . Reactor 1 | . . . . . . . . . 1 13 17 17 Treads 20 | . 28 28 26 18 17 23 26 15 19 17 17 17 Device 15 | . 14 14 . 17 17 15 13 15 18 17 17 16 Storage 7 | . 14 14 13 9 9 7 6 5 5 5 5 5 Protection 5 | . . . 13 7 8 7 6 4 3 5 5 5 Energy Gun 11 | . 28 20 14 12 8 8 13 9 11 5 5 8 Energy Cannon 5 | . . . . 10 9 5 . 7 1 4 5 5 Ballistic Gun 4 | . . . . . 8 6 6 . 7 12 11 5 Ballistic Cannon 7 | . . 6 14 7 6 7 6 9 5 4 5 7 Peak Build Rating 112 | 7 9 18 16 34 33 39 43 75 85 107 109 112 Average Rating 46 | 5 7 15 14 30 26 33 39 59 76 93 107 109 On Entrance 42 | . 7 9 14 16 28 26 39 43 72 77 107 109 Naked Turns . | . . . . . . . . . . . . . Heaviest Build 113 | 12 27 37 35 56 57 72 77 92 97 108 108 113 Greatest Support 136 | 40 40 40 40 40 40 60 80 110 116 120 136 136 Greatest Overweight (x) 2 | . . . 1 1 1 1 . 2 2 1 . . Average Overweight (x) . | . . . . 1 . . . . . . . . Largest Inventory Capacity 15 | 8 15 15 15 15 15 15 15 15 15 15 15 15 Average Capacity 14 | 6 11 15 14 15 15 15 15 15 15 15 15 15 Most Carried 15 | 5 15 15 15 15 15 15 15 15 15 15 15 15 Average Carried 14 | 2 8 14 13 14 14 14 14 14 14 14 14 14 Final Capacity 15 | 8 15 15 15 15 15 15 15 15 15 15 15 15 Final Carried 15 | 3 15 14 15 13 15 15 15 15 15 15 15 14 Class Distribution -------------------- 57% | Scavenger-Tank 11% | Tank 11% | Mutant 8% | Scavenger-Gunner 7% | Commander-Tank Dominant Class ---------------- Mutant | -10/Materials Scavenger-Mutant | -10/Mines Mutant | -10/Subcaves Scavenger-Tank | -8/Materials Scavenger-Tank | -8/Storage Scavenger-Tank | -7/Factory Scavenger-Tank | -6/Factory Scavenger-Tank | -5/Factory Scavenger-Tank | -5/Extension Scavenger-Tank | -5/Cetus Scavenger-Tank | -5/Archives Scavenger-Tank | -5/Hub_04(d) Resources | -11 -10 -10 -10 -8 -8 -7 -6 -5 -5 -5 -5 -5 ----------- Run | Yrd Mat Min Sub Mat Sto Fac Fac Fac Ext Cet Arc Hub Matter Collected 4565 | 243 57 194 95 202 737 219 67 1417 771 42 313 208 Remotely 158 | . . . . . . . . 30 128 . . . Salvage Created 8709 | 121 285 422 31 766 1246 420 398 2889 1164 298 428 241 Parts 407 | 8 20 30 2 40 77 21 23 84 57 14 11 20 Haulers Intercepted 2 | . . . . . 1 1 . . . . . . Recyclers Shooed 32 | 1 3 . . 1 3 5 2 10 5 . . 2 Parts Field Recycled . | . . . . . . . . . . . . . Retrieved Matter . | . . . . . . . . . . . . . Parts Self-Destructed 1 | . . . 1 . . . . . . . . . Prevented . | . . . . . . . . . . . . . Kills | -11 -10 -10 -10 -8 -8 -7 -6 -5 -5 -5 -5 -5 ------- Run | Yrd Mat Min Sub Mat Sto Fac Fac Fac Ext Cet Arc Hub Combat Hostiles Destroyed 137 | . 4 12 1 18 23 6 6 40 16 4 4 3 Guns 60 | . 4 9 . 4 11 3 6 10 8 2 2 1 Cannons 63 | . . 3 1 9 7 3 . 27 7 2 2 2 AOE 10 | . . . . 5 5 . . . . . . . Classes Destroyed 18 | 2 2 2 1 5 2 1 . 1 1 . 1 . Worker 10 | . . . . 1 . 3 1 3 . . . 2 Builder 9 | . . . . 1 2 1 1 3 . . . 1 Tunneler 5 | 1 . 1 . 1 . 1 . . 1 . . . Hauler 2 | . . . . . 1 1 . . . . . . Recycler 16 | 1 1 . . 1 4 1 . 8 . . . . Mechanic 2 | . . . . . 1 . 1 . . . . . Operator 2 | . . . . . . . . . . . 2 . Watcher 10 | . 1 . . 1 2 . . 2 2 1 . 1 Swarmer 13 | . . 3 . . 6 . . 4 . . . . Saboteur 1 | . . . . . . . . 1 . . . . Grunt 61 | . 4 7 . 11 9 2 1 23 4 . . . Brawler 3 | . . . . 1 . 2 . . . . . . Duelist 4 | . . . . 1 1 . . 2 . . . . Sentry 34 | . . 2 . 4 7 1 2 4 8 . 4 2 Hunter 11 | . . . . 1 . . 4 3 1 1 . 1 Programmer 5 | . . . . . . 1 . 3 1 . . . Behemoth 2 | . . . . . . . . . 2 . . . Cetus Guard 3 | . . . . . . . . . . 3 . . Subdweller 1 | . . . 1 . . . . . . . . . Savage 1 | . . . . . . . . . 1 . . . Best Kill Streak 13 | 2 3 6 1 13 9 6 4 10 6 4 3 5 Combat Bots Only 11 | . 2 6 1 11 5 4 3 6 6 3 2 2 Max Kills in Single Turn 4 | 1 2 1 1 3 4 2 2 3 2 1 1 3 Gunslinging 1 | . 1 . . . . . . . . . . . Exploded 3 | . . . . 2 3 . . . . . . . Melee . | . . . . . . . . . . . . . Uniques/NPCs Destroyed . | . . . . . . . . . . . . . Combat | -11 -10 -10 -10 -8 -8 -7 -6 -5 -5 -5 -5 -5 -------- Run | Yrd Mat Min Sub Mat Sto Fac Fac Fac Ext Cet Arc Hub Hostile Shots Fired 846 | . 16 47 13 59 99 4 126 237 144 43 18 40 Missed 209 | . 8 10 6 12 25 . 36 58 33 11 3 7 Damage Taken 11934 | . 123 448 199 846 1219 91 889 3524 2510 726 411 948 Core 1429 | . 53 39 18 108 105 . 36 338 243 48 30 411 Absorbed by Shields . | . . . . . . . . . . . . . Reduced by Siege Mode 115 | . . . . . . . . 88 . . 15 12 Ignored by Resistances 521 | . . . . . . . 329 192 . . . . Core Remaining (%) 82 | 100 . . 56 . 61 100 95 . . . . . Volleys Fired 399 | 4 34 42 10 41 57 9 17 103 37 15 18 12 Largest 5 | 2 2 2 2 4 4 4 4 5 5 5 5 5 Hottest 350 | 80 80 121 114 249 187 264 232 350 339 271 271 348 Shots Fired 1377 | 8 62 84 20 135 163 31 68 454 177 60 69 46 Gun 720 | 8 62 53 10 51 86 17 51 153 124 44 40 21 Cannon 633 | . . 31 10 64 73 14 17 301 53 16 29 25 Launcher 24 | . . . . 20 4 . . . . . . . Special . | . . . . . . . . . . . . . Kinetic 509 | . . 31 10 23 75 10 34 159 81 35 33 18 Thermal 732 | 4 28 48 10 92 73 21 34 294 79 15 18 16 Explosive 24 | . . . . 20 4 . . . . . . . Electromagnetic 112 | 4 34 5 . . 11 . . 1 17 10 18 12 Robot Hit Streak 27 | 2 4 8 4 6 10 8 9 27 27 8 12 12 Robot Miss Streak 10 | 3 3 3 1 3 6 4 10 6 4 3 3 4 Penetration Max 1 | . . . . . . . . 1 1 1 1 1 Secondary Targets 1 | . 1 . . . . . . . . . . . Max Gunslinging Chain 1 | . 1 . . . . . . . . . . . Shots Hit Robots 816 | 3 24 42 14 65 82 16 45 289 116 37 51 32 Core Hits 484 | 3 13 20 2 40 50 18 39 182 64 18 18 17 Critical Kills 10 | . . . . . 1 . . 2 7 . . . Critical Parts Destroyed 13 | . . . . . 1 . . . 11 1 . . Critical Strikes 48 | . . 4 2 3 4 . 1 7 18 4 2 3 Burn 12 | . . 3 2 2 1 . . . . 2 . 2 Meltdown 2 | . . . . . . . . 2 . . . . Destroy 22 | . . . . . 2 . . . 18 1 1 . Blast 10 | . . 1 . 1 . . 1 5 . 1 . 1 Corrupt 2 | . . . . . 1 . . . . . 1 . Melee Attacks . | . . . . . . . . . . . . . Impact . | . . . . . . . . . . . . . Slashing . | . . . . . . . . . . . . . Piercing . | . . . . . . . . . . . . . Sneak Attacks . | . . . . . . . . . . . . . Combat Hostiles . | . . . . . . . . . . . . . Follow-up Attacks . | . . . . . . . . . . . . . Damage Inflicted 21278 | 41 350 740 301 2294 2296 481 947 7523 3126 966 1188 1025 Guns 10505 | 41 350 454 109 573 797 294 804 3056 2343 706 575 403 Cannons 8919 | . . 282 192 654 886 146 143 4458 685 260 613 600 Explosions 1673 | . . . . 1065 608 . . . . . . . Melee . | . . . . . . . . . . . . . Ramming 181 | . . 4 . 2 5 41 . 9 98 . . 22 Kinetic 7112 | . . 282 192 214 682 83 336 2514 1125 671 586 427 Thermal 10934 | . 122 396 109 1013 972 357 611 4974 1686 161 232 301 Explosive 1592 | . . . . 1065 527 . . . . . . . Electromagnetic 1459 | 41 228 58 . . 110 . . 26 217 134 370 275 Impact . | . . . . . . . . . . . . . Slashing . | . . . . . . . . . . . . . Piercing . | . . . . . . . . . . . . . Highest Corruption 6 | . . . . . 2 . . 4 4 4 6 6 Average Corruption 3 | . . . . . 2 . . 3 4 4 4 6 Corruption Purged . | . . . . . . . . . . . . . Corruption Blocked . | . . . . . . . . . . . . . Effects 67 | . . . . . 5 . . 13 26 8 6 9 Message Errors 20 | . . . . . 2 . . 4 8 1 3 2 Matter Fused 13 | . . . . . 2 . . 1 5 1 . 4 Heat Flow Errors 8 | . . . . . . . . 4 3 . . 1 Energy Discharges 7 | . . . . . . . . 2 2 1 1 1 Parts Rejected 1 | . . . . . . . . . . . 1 . Data Loss (minor) 6 | . . . . . . . . 2 2 2 . . Data Loss (major) 6 | . . . . . 1 . . . 2 2 1 . Misfires 2 | . . . . . . . . . 2 . . . Alerts 1 | . . . . . . . . . 1 . . . Weapon Failures 3 | . . . . . . . . . 1 1 . 1 Overload Shots . | . . . . . . . . . . . . . Overflow Damage 189 | . . . . 51 14 . . 65 35 . . 24 Projectiles 138 | . . . . 23 . . . 65 26 . . 24 Explosions 42 | . . . . 28 14 . . . . . . . Melee 9 | . . . . . . . . . 9 . . . Knockbacks 55 | . . 1 2 1 8 . 3 32 2 . . 6 Impact . | . . . . . . . . . . . . . Kinetic 47 | . . 1 2 1 6 . 2 29 2 . . 4 Secondary 8 | . . . . . 2 . 1 3 . . . 2 Self-Inflicted Damage 232 | . . . . 108 124 . . . . . . . Shots 8 | . . . . 4 4 . . . . . . . Rammed 16 | . . 1 . 2 1 6 . 1 3 . . 2 Targets Rammed 24 | . . 1 . 3 1 10 . 2 4 . . 3 Kicked . | . . . . . . . . . . . . . Crushed 8 | . . . . 1 . 4 . 1 1 . . 1 Highest Temperature 644 | 54 132 95 33 261 470 335 81 418 413 72 75 644 Average Temperature 87 | 25 53 31 14 101 140 129 30 97 85 24 32 265 Received Heat Transfer 3385 | . 54 204 54 279 603 27 84 1099 744 . 54 183 Effects 24 | . . . . 1 9 1 . 4 3 . . 6 Shutdowns 9 | . . . . . 1 . . 2 3 . . 3 Energy Bleed 2 | . . . . 1 . . . . . . . 1 Interference 6 | . . . . . 4 . . 2 . . . . Matter Decay 1 | . . . . . 1 . . . . . . . Short Circuit 1 | . . . . . . 1 . . . . . . Damage (major) 3 | . . . . . 3 . . . . . . . Damage (core) 2 | . . . . . . . . . . . . 2 Siege Activations 16 | . . . . . . . . 9 . . 5 2 Total Turns 229 | . . . . . . . . 148 . . 64 17 Longest Duration 43 | . . . . . . . . 43 . . 33 10 Robots Corrupted . | . . . . . . . . . . . . . Combat Hostiles . | . . . . . . . . . . . . . Parts Fried 7 | . . . . . . . . . 1 . 4 2 Impact Corruptions 1 | . . . . . . . . . 1 . . . Robots Melted 5 | . . . . . . . . 4 1 . . . Combat Hostiles 4 | . . . . . . . . 3 1 . . . Parts Melted 35 | . . 2 . 4 1 1 2 21 4 . . . Heat Transferred 21323 | . 275 1209 333 1924 1691 723 1375 9550 2837 407 370 629 Parts Sabotaged . | . . . . . . . . . . . . . Parts Stolen . | . . . . . . . . . . . . . Parts Stripped . | . . . . . . . . . . . . . Power Chain Reactions 1 | . . . . . 1 . . . . . . . Alert | -11 -10 -10 -10 -8 -8 -7 -6 -5 -5 -5 -5 -5 ------- Run | Yrd Mat Min Sub Mat Sto Fac Fac Fac Ext Cet Arc Hub Peak Influence 1008 | 10 153 361 . 597 812 426 434 1008 940 536 406 271 Initial 492 | . 6 59 . 35 252 303 208 212 492 442 214 142 Average 410 | 5 72 166 . 115 591 334 300 488 684 492 325 201 Maximum Alert Level 3 | . . 1 . 2 3 2 2 3 3 2 2 1 Low Security (%) 22 | 100 100 74 . 84 . . . 11 . . . 42 Level 1 29 | . . 25 . 6 15 68 86 42 . . 64 57 Level 2 30 | . . . . 9 70 31 13 10 42 100 35 . Level 3 17 | . . . . . 14 . . 35 57 . . . Level 4 . | . . . . . . . . . . . . . Level 5 . | . . . . . . . . . . . . . High Security . | . . . . . . . . . . . . . Max Security . | . . . . . . . . . . . . . Squads Dispatched 31 | . 1 . . 3 4 2 2 10 3 1 . 5 Investigation 5 | . . . . 1 1 . 1 . 1 1 . . Extermination 3 | . . . . . . 2 . 1 . . . . Reinforcement 12 | . 1 . . 2 2 . . 2 1 . . 4 Assault 4 | . . . . . 1 . . 2 1 . . . Garrison 7 | . . . . . . . 1 5 . . . 1 Intercept . | . . . . . . . . . . . . . Searches Triggered . | . . . . . . . . . . . . . Construction Impeded 3 | . . . . 1 1 . . 1 . . . . Haulers Reinforced . | . . . . . . . . . . . . . Active Scanning Responses . | . . . . . . . . . . . . . Cargo Convoy Interrupts . | . . . . . . . . . . . . . Stealth | -11 -10 -10 -10 -8 -8 -7 -6 -5 -5 -5 -5 -5 --------- Run | Yrd Mat Min Sub Mat Sto Fac Fac Fac Ext Cet Arc Hub Distress Signals 15 | . 1 . . 2 2 . 2 3 2 1 . 2 Communications Jammed . | . . . . . . . . . . . . . Distress Signals . | . . . . . . . . . . . . . Times Spotted 228 | . 10 15 9 26 30 16 8 59 33 5 4 13 Peak Tracking Total 10 | . 3 5 6 6 5 6 3 8 8 5 1 10 Tactical Retreats 7 | . . 2 . . 1 . . 3 1 . . . Traps | -11 -10 -10 -10 -8 -8 -7 -6 -5 -5 -5 -5 -5 ------- Run | Yrd Mat Min Sub Mat Sto Fac Fac Fac Ext Cet Arc Hub Traps Triggered 9 | . 1 . . 1 3 3 . 1 . . . . Indirectly . | . . . . . . . . . . . . . Trap Hack Attempts . | . . . . . . . . . . . . . Triggered . | . . . . . . . . . . . . . Disarmed . | . . . . . . . . . . . . . Reprogrammed . | . . . . . . . . . . . . . Reused . | . . . . . . . . . . . . . Traps Extracted . | . . . . . . . . . . . . . Installed . | . . . . . . . . . . . . . Triggered . | . . . . . . . . . . . . . Machines | -11 -10 -10 -10 -8 -8 -7 -6 -5 -5 -5 -5 -5 ---------- Run | Yrd Mat Min Sub Mat Sto Fac Fac Fac Ext Cet Arc Hub Machines Disabled 23 | . 3 . . 3 4 . . 8 . . 5 . Max in Single Turn 5 | . 1 . . 1 1 . . 5 . . 2 . Garrison Access 2 | . . . . . . 1 . . . . . 1 Machines Repaired . | . . . . . . . . . . . . . Machines Dismantled . | . . . . . . . . . . . . . Machines Sabotaged . | . . . . . . . . . . . . . Overloaded Fab Kills . | . . . . . . . . . . . . . Hacking | -11 -10 -10 -10 -8 -8 -7 -6 -5 -5 -5 -5 -5 --------- Run | Yrd Mat Min Sub Mat Sto Fac Fac Fac Ext Cet Arc Hub Machines Accessed 21 | . . . . 1 4 3 2 2 4 1 . 4 Terminals 18 | . . . . 1 4 2 1 2 4 1 . 3 Fabricators . | . . . . . . . . . . . . . Repair Stations . | . . . . . . . . . . . . . Recycling Units . | . . . . . . . . . . . . . Scanalyzers . | . . . . . . . . . . . . . Garrison Access 3 | . . . . . . 1 1 . . . . 1 Total Hacks 43 | . . . . 1 13 5 6 3 6 2 . 7 Successful 18 | . . . . 1 7 2 1 2 3 . . 2 Failed 25 | . . . . . 6 3 5 1 3 2 . 5 Catastrophic 7 | . . . . . 1 . 1 . 1 1 . 3 Database Lockouts . | . . . . . . . . . . . . . Manual . | . . . . . . . . . . . . . Terminals 38 | . . . . 1 13 4 3 3 6 2 . 6 Fabricators . | . . . . . . . . . . . . . Repair Stations . | . . . . . . . . . . . . . Recycling Units . | . . . . . . . . . . . . . Scanalyzers . | . . . . . . . . . . . . . Garrison Access 5 | . . . . . . 1 3 . . . . 1 Terminal Hacks 16 | . . . . 1 7 1 1 2 3 . . 1 Open Door 2 | . . . . . 1 . . . 1 . . . Terminal Index 1 | . . . . . . . . 1 . . . . Alert Level 5 | . . . . . 4 . . . 1 . . . Locate Traps 5 | . . . . . 1 1 1 . 1 . . 1 Maintenance Status 1 | . . . . . . . . 1 . . . . Reinforcement Status 1 | . . . . . 1 . . . . . . . Hauler Manifests 1 | . . . . 1 . . . . . . . . Fabricator Hacks . | . . . . . . . . . . . . . Repair Station Hacks . | . . . . . . . . . . . . . Recycling Unit Hacks . | . . . . . . . . . . . . . Scanalyzer . | . . . . . . . . . . . . . Garrison Access Hacks 2 | . . . . . . 1 . . . . . 1 Seal Access 2 | . . . . . . 1 . . . . . 1 Unauthorized Hacks . | . . . . . . . . . . . . . Terminals . | . . . . . . . . . . . . . Fabricators . | . . . . . . . . . . . . . Repair Stations . | . . . . . . . . . . . . . Recycling Units . | . . . . . . . . . . . . . Scanalyzers . | . . . . . . . . . . . . . Garrison Access . | . . . . . . . . . . . . . Data Cores Recovered . | . . . . . . . . . . . . . Used . | . . . . . . . . . . . . . Hacking Detections 14 | . . . . . 3 2 2 1 2 1 . 3 Full Trace Events 4 | . . . . . 1 . 1 . 1 1 . . Feedback Events . | . . . . . . . . . . . . . Feedback Blocked . | . . . . . . . . . . . . . Robot Schematics Acquired . | . . . . . . . . . . . . . Robots Built . | . . . . . . . . . . . . . Authchips . | . . . . . . . . . . . . . Time . | . . . . . . . . . . . . . Total Robot Build Rating . | . . . . . . . . . . . . . Part Schematics Acquired . | . . . . . . . . . . . . . Parts Built . | . . . . . . . . . . . . . Authchips . | . . . . . . . . . . . . . Time . | . . . . . . . . . . . . . Total Part Build Rating . | . . . . . . . . . . . . . Parts Repaired . | . . . . . . . . . . . . . Time . | . . . . . . . . . . . . . Parts Recycled . | . . . . . . . . . . . . . Recycled Matter . | . . . . . . . . . . . . . Retrieved Matter . | . . . . . . . . . . . . . Retrieved Components . | . . . . . . . . . . . . . Parts Scanalyzed . | . . . . . . . . . . . . . Part Schematics Acquired . | . . . . . . . . . . . . . Parts Damaged . | . . . . . . . . . . . . . Bothacking | -11 -10 -10 -10 -8 -8 -7 -6 -5 -5 -5 -5 -5 ------------ Run | Yrd Mat Min Sub Mat Sto Fac Fac Fac Ext Cet Arc Hub Used RIF Installer . | . . . . . . . . . . . . . Robots Hacked . | . . . . . . . . . . . . . Non-combat . | . . . . . . . . . . . . . Combat . | . . . . . . . . . . . . . Robot Hacks Applied . | . . . . . . . . . . . . . Relay Couplers Released . | . . . . . . . . . . . . . Fabnet Peak Effective % . | . . . . . . . . . . . . . Robots Rewired 8 | . . . . . . . . . 8 . . . Allies Hacked . | . . . . . . . . . . . . . Hacks Repelled . | . . . . . . . . . . . . . Allies | -11 -10 -10 -10 -8 -8 -7 -6 -5 -5 -5 -5 -5 -------- Run | Yrd Mat Min Sub Mat Sto Fac Fac Fac Ext Cet Arc Hub Total Allies 20 | . . . . . 10 . . . 10 . . . Largest Group 10 | . . . . . 10 8 1 . 6 2 1 . Highest-Rated Group 202 | . . . . . 173 141 26 . 202 62 31 . Highest-Rated Ally 39 | . . . . . 29 29 26 . 39 31 31 . Total Orders . | . . . . . . . . . . . . . Ally Attacks 266 | . . . . . 18 89 9 . 116 27 7 . Total Damage 3815 | . . . . . 229 1217 113 . 1708 421 127 . Kills 31 | . . . . . 3 13 1 . 13 1 . . Allies Corrupted 1 | . . . . . 1 . . . . . . . Allies Melted . | . . . . . . . . . . . . . Intel | -11 -10 -10 -10 -8 -8 -7 -6 -5 -5 -5 -5 -5 ------- Run | Yrd Mat Min Sub Mat Sto Fac Fac Fac Ext Cet Arc Hub Robot Analysis Total . | . . . . . . . . . . . . . Derelict Logs Recovered 2 | . . 1 1 . . . . . . . . . Drone Launches 2 | . . . . . 2 . . . . . . . Drone Recoveries 2 | . . . . . 2 . . . . . . . Exploration | -11 -10 -10 -10 -8 -8 -7 -6 -5 -5 -5 -5 -5 ------------- Run | Yrd Mat Min Sub Mat Sto Fac Fac Fac Ext Cet Arc Hub Turns Passed 7749 | 75 321 464 258 787 1223 1130 198 1490 1106 250 214 233 Spaces Moved 2829 | 38 128 194 124 234 402 486 77 490 394 95 55 112 Core 12 | 12 . . . . . . . . . . . . Treads 2817 | 26 128 194 124 234 402 486 77 490 394 95 55 112 Legs . | . . . . . . . . . . . . . Wheels . | . . . . . . . . . . . . . Hover . | . . . . . . . . . . . . . Flight . | . . . . . . . . . . . . . Fastest Speed 50 | 50 160 160 160 250 160 160 160 160 160 166 160 160 Average Speed 199 | 125 160 160 162 250 241 213 160 201 187 191 162 160 Slowest Speed 320 | 160 160 160 240 250 250 240 160 320 320 246 166 160 Overloaded Moves . | . . . . . . . . . . . . . Propulsion Burnouts . | . . . . . . . . . . . . . Robots Hopped . | . . . . . . . . . . . . . Cave-ins Triggered . | . . . . . . . . . . . . . Exploration Rate (%) 33 | 3 27 54 11 34 74 24 4 23 54 55 62 16 Regions Visited 12 Branch Regions 7 Pre-discovered Areas 1 | . . 1 . . . . . . . . . . Known Exits Taken . | . . . . . . . . . . . . . Unknown Exits Taken 12 | 1 1 1 1 1 1 1 1 1 1 1 1 . Scrap Searched . | . . . . . . . . . . . . . Spaces Dug 14 | . . . . 9 . . . 5 . . . . Terrain Destroyed 327 | . . 1 . 167 59 1 . 90 6 1 . 2 Melee . | . . . . . . . . . . . . . Projectile 73 | . . 1 . 16 11 1 . 35 6 1 . 2 AOE 254 | . . . . 151 48 . . 55 . . . . Terrain Rammed . | . . . . . . . . . . . . . Walls Destroyed . | . . . . . . . . . . . . . Machines Disabled . | . . . . . . . . . . . . . Actions | -11 -10 -10 -10 -8 -8 -7 -6 -5 -5 -5 -5 -5 --------- Run | Yrd Mat Min Sub Mat Sto Fac Fac Fac Ext Cet Arc Hub Total 3975 | 58 182 267 164 344 535 546 102 705 667 130 138 137 Wait 172 | . . 5 . 20 24 . . 29 46 . 48 . Move 2817 | 37 127 193 123 233 401 485 76 489 393 94 54 112 Hop . | . . . . . . . . . . . . . Pick Up 140 | 10 15 8 17 13 14 9 1 23 16 7 4 3 Fast Attach 60 | . . 1 1 5 4 9 4 10 18 3 3 2 Attach 68 | 7 . 5 4 7 9 4 1 19 8 3 . 1 Detach 6 | . . 1 1 . . 1 . 2 . . 1 . Swap 50 | . 3 2 1 5 10 3 1 8 13 1 3 . Drop 133 | . 3 9 7 17 13 14 2 20 30 7 7 4 Fire 399 | 4 34 42 10 41 57 9 17 103 37 15 18 12 Melee . | . . . . . . . . . . . . . Ram . | . . . . . . . . . . . . . Kick . | . . . . . . . . . . . . . Crush 24 | . . 1 . 3 1 10 . 2 4 . . 3 Escape Stasis 4 | . . . . . 2 2 . . . . . . Rewire 102 | . . . . . . . . . 102 . . . Trap . | . . . . . . . . . . . . . Miscellaneous . | . . . . . . . . . . . . . Route ------- -11/Scrapyard -10/Materials -10/Mines -10/Subcaves -8/Materials -8/Storage -7/Factory -6/Factory -5/Factory -5/Extension (discovered 2 exits: [*Fac] / *Cet) -5/Cetus -5/Archives (discovered 2 exits: *Hub x2) -5/Hub_04(d) History --------- Turn | Location | Event 7 | -11/Scrapyard | Discovered new exit (range 15) 76 | -11/Scrapyard | Entered Materials 210 | -10/Materials | Discovered new exit (range 13) 304 | -10/Materials | Build established: Mutant 397 | -10/Materials | Entered Mines 417 | -10/Mines | Joined a pair of Derelicts in attacking an 0b10 outpost 636 | -10/Mines | Excavation squad dispatched 636 | -10/Mines | A large section of the Mines collapsed 825 | -10/Mines | Discovered new exit (range 8) 835 | -10/Mines | Learned location of Zion (-7) 861 | -10/Mines | Entered Subcaves 941 | -10/Subcaves | A swath of the cavern ceiling suddenly collapsed 942 | -10/Subcaves | Learned Materials emergency access door positions 990 | -10/Subcaves | Ambushed by Subdwellers from Twisted Machinery 1032 | -10/Subcaves | Ambushed by swarm of Subdwellers 1077 | -10/Subcaves | Lost 3 allies 1107 | -10/Subcaves | Discovered new exit (range 8) 1119 | -10/Subcaves | Entered Materials 1119 | -8/Materials | Evolved 4 slots: Utility x2, Weapon x2 1630 | -8/Materials | Build established: Scavenger-Tank 1844 | -8/Materials | Discovered new exit (range 14) 1854 | -8/Materials | Lost 3 parts (1p1u1w) 1894 | -8/Materials | Destroyed 11 combat bots 1906 | -8/Materials | Entered Storage 1934 | -8/Storage | Build established: Tank 2550 | -8/Storage | Build established: Scavenger-Tank 2863 | -8/Storage | Lost 5 parts (1p1n1u2w) 2883 | -8/Storage | Assisted by bots powering up and referring to "LRC-V3" 3049 | -8/Storage | Discovered new exit (range 8) 3106 | -8/Storage | First assault squad dispatched 3129 | -8/Storage | Entered Factory 3129 | -7/Factory | Accompanied by 8 allies 3129 | -7/Factory | Evolved 2 slots: Power x1, Propulsion x1 3703 | -7/Factory | Build established: Commander-Tank 4012 | -7/Factory | Build established: Scavenger-Tank 4090 | -7/Factory | Lost 4 allies 4249 | -7/Factory | Discovered new exit (range 5) 4259 | -7/Factory | Entered another Factory area 4259 | -6/Factory | Accompanied by 1 ally 4259 | -6/Factory | Evolved 2 slots: Power x1, Propulsion x1 4362 | -6/Factory | Garrison activated, responded to threat 4425 | -6/Factory | Discovered new exit (range 11) 4457 | -6/Factory | Entered another Factory area 4457 | -5/Factory | Evolved 2 slots: Utility x1, Weapon x1 4572 | -5/Factory | Garrison activated, responded to threat 5120 | -5/Factory | Lost 3 parts (1n1u1w) 5265 | -5/Factory | Lost 3 parts (1p1n1u) 5357 | -5/Factory | First assault squad dispatched 5453 | -5/Factory | Lost 6 parts (2p2u2w) 5503 | -5/Factory | Garrison activated, responded to threat 5668 | -5/Factory | Garrison activated, responded to threat 5708 | -5/Factory | Build established: Tank 5891 | -5/Factory | Lost 5 parts (1p1u3w) 5923 | -5/Factory | Discovered new exit (range 7) 5947 | -5/Factory | Entered Extension 5995 | -5/Extension | Rescued a captive Derelict 5996 | -5/Extension | Rescued a captive Derelict 6141 | -5/Extension | Build established: Scavenger-Gunner 6460 | -5/Extension | Build established: Scavenger-Tank 6547 | -5/Extension | First assault squad dispatched 6579 | -5/Extension | Spotted B-75 Beast 6597 | -5/Extension | Disrupted transfer network 6612 | -5/Extension | Spotted B-75 Beast 6627 | -5/Extension | Destroyed B-75 Beast 6668 | -5/Extension | Core integrity fell below 50% 6670 | -5/Extension | Destroyed B-75 Beast 6697 | -5/Extension | Lost 9 parts (3p3n3w) 7008 | -5/Extension | Discovered new exit (range 16) 7012 | -5/Extension | Discovered new exit (range 14) 7053 | -5/Extension | Entered Cetus 7053 | -5/Cetus | Accompanied by 2 allies 7086 | -5/Cetus | Spotted Cetus Guard 7086 | -5/Cetus | Spotted Cetus Guard 7090 | -5/Cetus | Spotted Cetus Guard 7096 | -5/Cetus | Allies destroyed Cetus Guard 7098 | -5/Cetus | Destroyed Cetus Guard 7099 | -5/Cetus | Spotted Cetus Guard 7114 | -5/Cetus | Destroyed Cetus Guard 7121 | -5/Cetus | Destroyed Cetus Guard 7271 | -5/Cetus | Discovered new exit (range 16) 7303 | -5/Cetus | Entered Archives 7303 | -5/Archives | Accompanied by 1 ally 7476 | -5/Archives | Discovered new exit (range 16) 7487 | -5/Archives | Discovered new exit (range 16) 7517 | -5/Archives | Entered Hub_04(d) 7599 | -5/Hub_04(d) | Garrison activated, responded to threat 7750 | -5/Hub_04(d) | Core integrity fell below 20% 7751 | -5/Hub_04(d) | Core destroyed Last Messages --------------- 07736_ H-71 Marshal calls for reinforcements. 07736_ ALERT: Hostile activity reported, dispatching reinforcements to area. 07737_ System corrupted: Energy discharge (-114). 07739_ Penetrated by Slug. 07739_ U-05 Engineer destroyed. 07739_ Adv. Cooling System destroyed. 07740_ H-66 Slayer knocked back. 07741_ Activated siege mode. 07743_ Destroyed Phase Shifter. 07743_ H-66 Slayer knocked back. 07743_ Slug penetrates H-66 Slayer. 07743_ H-66 Slayer destroyed. 07744_ Power failure, Antimatter Reactor shutdown. 07744_ ALERT: Hostiles spotted, dispatching reinforcements to Terminal H007. 07746_ Power failure, Lgt. Antimatter Reactor shutdown. 07746_ Power failure, Quantum Reactor shutdown. 07746_ Overheating: Energy bleed (-148). 07747_ G-50 Soldier knocked back. 07747_ U-05 Engineer builds a Wall. 07750_ Overheating: Core damaged (-170). Map ----- +----------------------------------------------------+ | ????????????????????????????????????????????????? | | ????????????????????????????????????????????????? | | ????????????????????????????????????????????????? | | ????????????????????????????????????????????????? | | ????????????????????????????????????????????????? | | ????????????????????????????????????????????????? | | ????????????????????????????????????????????????? | | ????????????????????????????????????????????????? | | ????????????????????????????????????????????????? | | ????????????????????????????????????????????????? | | ????????????????????????? ?????????????????????? | | ????????????????????????? ?????????????????????? | | ????????????????????????? ?????????????????????? | | ????????????????????????? ?????????????????????? | | ????????????????????????? ?? ??????????????????? | | ????????????????????????? ?? ??????????????????? | | ????????????????????????#w??? ??????????????????? | | ???????????????????????# %??? ??????????????????? | | ??????????????????????? ??? ??????????????????? | | ???????????????????????%% ?H? "?????????????????? | | ???????????????????????#uu??? ""????????????????? | | ???????????????????????#g#??# "?????????????????? | | ???????????????????????#x#??# "?????????????????? | | ???????????????????????#x##?# ?????????????????? | | ???????????????????????# ##?#+###########???????? | | ???????????????????????#@#### # """T""" #???????? | | ???????????????????????#u#T"# # #???????? | | ??????????????????????##R# "# # """" #???????? | | ??????????????????????# # ! """" #???????? | | ??????????????????????# + """" #???????? | | ??????????????????????# #### # ! """" #???????? | | ??????????????????????# #??# # #???????? | | ??????????????????????# #??# # ! #???????? | | ??????????????^??????? #??# #####+#####???????? | | ??????????????^?????? #??# #???# #???????????? | | ??????????????^?????### ####+##### #???????????? | | ??????????????^???????# # [ #!#???????????? | | ??????????????^???????#!!# " ! # ###?????????? | | ??????????????????????#|%# " !][ # #?????????? | | ??????????????????????# *+ " ! + +?????????? | | ??????????????????????? ## [ # #?????????? | | ??????????????????????? ?# " " " # #?????????? | | ??????????????????????? ?# " "G" # #?????????? | | ?????????????????????????# " " # #?????????? | | ?????????????????????????# # #?????????? | | ?????????????????????????## ####### #?????????? | | ??????????????????????????##??????#=! #?????????? | | ??????????????????????????????????# #??######## | | ??????????????????????????????????# #?? !! # | | ????????????????????????######????# #? ! # | +----------------------------------------------------+ Best States ------------- Heat Dissipation 109 Energy Generation 57 Energy Capacity 645 Matter Stores 300 Matter Capacity 300 Sight Range 16 Terrain Scan Density 10 Jamming Range 12 Armor Coverage 800 Resistance: KI 30 Evasion (%) 40 Recoil Reduction 4 Particle Charging 15 Item Schematics ----------------- None Robot Schematics ------------------ None Fabricated ------------ Nothing Alien Tech Used ----------------- None Achievements -------------- None Challenges ------------ None Game ------ Seed RiotNuclearRecalibrator Manual? 0 Play Time 02:09:14 Cumulative 33.0 hours Start 2025.02.17 @ 10:40:47 End 2025.02.17 @ 12:53:11 Sessions 1 Manual Loads 0 Difficulty Rogue Special Mode None Game No. 30 Rogue 30 Adventurer 0 Explorer 0 Win Type - Total 0 Types 0/0/0/0/0/0/0/0/0 Lore% 3 Gallery% 26 Achievement% 21 Wizard Run 0 Options --------- Layout 0 ASCII 0 Keyboard 0 Movement Mouse Keybinds 0 Fullscreen 2 Font 12/Smallcaps Map View 41x27 Zoom Use 99% Tactical HUD 1 Map Filters NONE Filters NONE Steam 1 RUN: a6839771-7ef8-4ebc-8f27-d5b81541b03f